bitfinex-derivatives/quotes_SOLF0:USTF0_20250823
["timestamp","ask_amount","ask_price","bid_price","bid_amount"]
[1755912706056,2.48,198.0,197.93,4.80246213]
[1755912706261,2.48,198.0,197.91,7.9642]
[1755912706462,2.48,198.0,197.92,4.80214291]
[1755912706661,2.48,198.0,197.93,4.80214291]
[1755912706959,2.48,198.0,197.91,7.9642]
[1755912707159,2.48,198.0,197.92,4.80273598]
[1755912707357,2.48,198.0,197.93,4.80273598]
[1755912707560,5.0524,197.99,197.94,4.80233577]
[1755912707765,2.48,197.97,197.95,4.80233577]
[1755912707968,2.48,197.97,197.91,7.9642]
[1755912708168,2.48,197.97,197.92,12.39499917]
[1755912708369,5.0524,197.99,197.88,2.91]
[1755912708370,2.24310239,197.98,197.88,2.91]
[1755912708567,25.2567,198.03,197.89,4.80268517]
[1755912708568,4.72310239,197.95,197.89,4.80268517]
[1755912708762,2.48,197.93,197.9,4.80268517]
[1755912708963,2.48,197.92,197.88,2.91]
[1755912709163,2.48,197.92,197.89,4.80252062]
[1755912709363,2.48,197.92,197.88,2.91]
[1755912709564,2.48,197.92,197.89,4.80034766]
[1755912709769,2.48,197.92,197.88,2.91]
[1755912710068,2.48,197.92,197.89,4.80034632]
[1755912710269,2.48,197.93,197.84,7.9661]
[1755912710568,2.48,197.93,197.85,4.77859117]
[1755912710766,2.48,197.93,197.86,4.77859117]
[1755912710967,2.48,197.93,197.84,7.9661]
[1755912711166,2.48,197.93,197.85,4.77926404]
[1755912711369,2.48,197.93,197.86,4.77926404]
[1755912711564,2.48,197.93,197.84,7.9661]
[1755912711770,2.48,197.93,197.85,4.77649081]
[1755912712065,7.29730239,197.92,197.86,4.77649081]
[1755912712270,2.48,197.91,197.8,2.91]
[1755912712471,2.48,197.91,197.81,4.77691955]
[1755912712472,2.24310239,197.88,197.81,4.77691955]
[1755912712772,9.77840239,197.88,197.8,2.91]
[1755912714070,9.77840239,197.88,197.69,25.2995]
[1755912714071,2.48,197.85,197.76,2.91]
[1755912714271,2.48,197.85,197.77,4.76492603]
[1755912714465,2.48,197.85,197.76,2.91]
[1755912714669,2.48,197.85,197.77,4.76496176]
[1755912714870,2.48,197.85,197.76,2.91]
[1755912715066,2.48,197.85,197.77,9.82306176]
[1755912715270,2.48,197.85,197.77,5.0581]
[1755912716375,4.72310239,197.85,197.77,5.0581]
[1755912717176,9.77940239,197.85,197.76,2.91]
[1755912717572,4.72310239,197.85,197.76,2.91]
[1755912718574,4.72310239,197.85,197.76,7.9682]
[1755912718775,2.48,197.85,197.76,7.9682]
[1755912718976,4.72310239,197.85,197.76,7.9682]
[1755912721774,4.72310239,197.82,197.72,2.91]
[1755912721977,2.48,197.81,197.73,4.7516125]
[1755912722175,2.24310239,197.79,197.72,2.91]
[1755912722373,4.72310239,197.76,197.68,2.91]
[1755912722773,5.0589,197.74,197.68,2.91]
[1755912724079,7.5489,197.74,197.68,2.91]
[1755912725580,9.79200239,197.74,197.68,2.91]
[1755912728476,7.5489,197.74,197.68,2.91]
[1755912728774,9.79200239,197.74,197.68,2.91]
[1755912734075,2.49,197.72,197.52,25.3214]
[1755912734276,2.49,197.67,197.58,2.72]
[1755912735284,7.5508,197.67,197.59,5.0626]
[1755912736585,2.49,197.67,197.58,2.72]
[1755912736984,4.73310239,197.67,197.58,2.72]
[1755912739488,2.24310239,197.67,197.58,2.72]
[1755912739689,2.49,197.66,197.58,2.72]
[1755912743991,2.24310239,197.64,197.58,2.72]
[1755912744387,2.24310239,197.64,197.33,4.18012569]
[1755912744388,2.49,197.6,197.51,2.72]
[1755912744582,2.49,197.6,197.53,2.72]
[1755912747192,2.49,197.6,197.5,2.72]
[1755912747386,2.24310239,197.58,197.5,2.72]
[1755912747586,2.24310239,197.58,197.51,4.77480221]
[1755912747783,2.24310239,197.58,197.5,2.72]
[1755912747983,2.24310239,197.58,197.51,4.77323887]
[1755912748184,2.24310239,197.58,197.5,2.72]
[1755912748486,2.24310239,197.68,197.52,2.72]
[1755912748685,2.49,197.61,197.52,2.72]
[1755912748890,2.24310239,197.6,197.52,2.72]
[1755912749291,2.49,197.59,197.52,2.72]
[1755912751198,2.49,197.59,197.53,4.78308211]
[1755912751396,2.49,197.59,197.52,2.72]
[1755912751596,2.49,197.59,197.53,4.78229845]
[1755912751792,2.24310239,197.68,197.52,2.72]
[1755912752097,2.24310239,197.62,197.54,2.72]
[1755912752302,2.49,197.65,197.56,2.72]
[1755912752487,2.49,197.65,197.57,4.78223656]
[1755912752795,2.49,197.65,197.58,4.78223656]
[1755912752996,2.49,197.65,197.59,4.78223656]
[1755912753198,2.49,197.65,197.6,4.79005559]
[1755912753395,2.49,197.64,197.56,2.72]
[1755912753598,2.49,197.64,197.57,4.79038322]
[1755912753791,2.49,197.64,197.58,4.79038322]
[1755912753991,2.49,197.64,197.56,2.72]
[1755912753992,2.49,197.63,197.59,4.79038322]
[1755912754193,2.24310239,197.67,197.6,4.79038322]
[1755912754494,2.49,197.66,197.56,2.85]
[1755912754695,2.49,197.66,197.57,4.79447687]
[1755912754900,2.49,197.66,197.58,4.79447687]
[1755912755195,2.49,197.66,197.59,7.64447687]
[1755912755395,2.49,197.66,197.6,4.79447687]
[1755912755696,2.49,197.66,197.61,4.79863921]
[1755912755896,2.49,197.66,197.61,2.85]
[1755912756092,2.24310239,197.67,197.61,2.85]
[1755912756297,2.49,197.65,197.61,2.85]
[1755912756892,2.49,197.65,197.62,7.65250011]
[1755912757099,2.49,197.65,197.52,2.24310239]
[1755912757100,2.24310239,197.67,197.52,2.24310239]
[1755912757396,4.73310239,197.67,197.54,2.85]
[1755912757600,4.73310239,197.67,197.56,2.85]
[1755912757796,4.73310239,197.67,197.58,2.85]
[1755912757993,2.49,197.66,197.59,4.80255932]
[1755912758201,2.49,197.66,197.6,4.80255932]
[1755912758400,2.24310239,197.67,197.61,4.80255932]
[1755912758602,2.49,197.64,197.58,2.85]
[1755912758902,2.24310239,197.67,197.6,2.85]
[1755912759105,2.24310239,197.67,197.61,4.80914681]
[1755912759402,2.24310239,197.67,197.6,2.85]
[1755912759604,2.24310239,197.67,197.61,4.81197401]
[1755912759798,2.24310239,197.67,197.6,2.85]
[1755912760101,2.24310239,197.67,197.49,3.1995547]
[1755912760102,5.058,197.77,197.62,2.85]
[1755912760403,2.49,197.7,197.63,4.81197401]
[1755912760602,2.49,197.7,197.64,4.81197401]
[1755912760803,2.49,197.7,197.62,2.85]
[1755912761001,2.24310239,197.73,197.64,2.85]
[1755912761196,2.24310239,197.73,197.65,4.81469838]
[1755912761395,2.49,197.72,197.66,4.81469838]
[1755912761599,2.49,197.72,197.64,2.85]
[1755912761799,2.49,197.72,197.65,4.81819522]
[1755912762005,2.49,197.72,197.66,4.81819522]
[1755912762202,2.49,197.72,197.64,2.85]
[1755912762501,2.49,197.68,197.64,2.85]
[1755912762799,2.49,197.69,197.54,2.85]
[1755912763003,2.49,197.69,197.56,2.85]
[1755912763303,2.49,197.69,197.58,2.85]
[1755912763503,2.49,197.69,197.6,2.85]
[1755912763806,2.49,197.69,197.61,4.82315025]
[1755912763995,2.49,197.69,197.62,4.82315025]
[1755912764201,2.49,197.69,197.63,4.82315025]
[1755912764397,2.49,197.69,197.6,2.85]
[1755912764602,2.49,197.69,197.61,4.83233756]
[1755912764894,2.49,197.69,197.62,4.83233756]
[1755912765100,2.49,197.69,197.6,2.85]
[1755912765306,2.49,197.69,197.61,4.83247933]
[1755912765604,2.49,197.69,197.62,4.83289298]
[1755912765802,2.49,197.69,197.6,2.85]
[1755912766004,2.49,197.69,197.61,4.83289162]
[1755912766201,2.49,197.69,197.62,4.83289162]
[1755912766403,2.49,197.69,197.6,2.85]
[1755912766605,2.49,197.69,197.61,4.83323609]
[1755912766807,2.49,197.66,197.57,2.85]
[1755912767006,2.49,197.66,197.58,4.83351052]
[1755912767205,2.49,197.66,197.6,2.85]
[1755912767403,2.49,197.66,197.62,2.85]
[1755912767802,2.24310239,197.68,197.5,2.24310239]
[1755912767998,2.49,197.67,197.51,11.36993199]
[1755912768201,2.49,197.67,197.53,2.85]
[1755912768403,2.49,197.67,197.55,2.85]
[1755912768598,2.49,197.67,197.57,2.85]
[1755912768806,2.49,197.67,197.58,4.83837073]
[1755912769009,2.49,197.67,197.59,4.83837073]
[1755912769210,2.24310239,197.68,197.6,7.68808956]
[1755912769515,2.24310239,197.68,197.6,2.85]
[1755912770407,10.65239904,197.68,197.6,2.85]
[1755912772509,8.40929665,197.67,197.6,2.85]
[1755912773214,2.49,197.7,197.6,2.85]
[1755912773215,8.40929665,197.69,197.6,2.85]
[1755912773611,10.89929665,197.7,197.62,2.85]
[1755912774307,2.49,197.69,197.62,2.85]
[1755912774501,8.40929665,197.68,197.62,2.85]
[1755912774706,2.49,197.65,197.62,2.85]
[1755912775708,2.49,197.65,197.49,0.95645231]
[1755912776019,2.49,197.65,197.59,2.85]
[1755912776310,2.49,197.65,197.55,2.85]
[1755912776311,10.89929665,197.65,197.55,2.85]
[1755912776507,10.89929665,197.65,197.56,4.82589406]
[1755912776710,8.40929665,197.64,197.55,2.85]
[1755912777112,2.49,197.63,197.55,2.85]
[1755912777417,10.89929665,197.63,197.56,4.82617981]
[1755912777611,10.89929665,197.63,197.55,2.85]
[1755912777810,10.89929665,197.63,197.56,4.82804748]
[1755912778010,10.89929665,197.63,197.55,2.85]
[1755912778213,10.89929665,197.63,197.56,4.82804883]
[1755912778410,8.40929665,197.62,197.55,2.85]
[1755912778609,8.40929665,197.62,197.56,4.83011398]
[1755912778811,8.40929665,197.62,197.55,2.85]
[1755912779111,8.40929665,197.59,197.55,2.85]
[1755912779318,2.49,197.59,197.55,2.85]
[1755912780206,8.40929665,197.59,197.5,2.85]
[1755912780416,8.40929665,197.61,197.52,2.85]
[1755912780617,8.40929665,197.6,197.53,4.83044779]
[1755912780809,8.40929665,197.59,197.54,4.83044779]
[1755912781116,2.24310239,197.6,197.52,2.85]
[1755912781117,10.89929665,197.58,197.52,2.85]
[1755912781812,2.49,197.58,197.52,2.85]
[1755912782015,8.40929665,197.59,197.53,4.83023418]
[1755912782318,10.65239904,197.6,197.56,2.85]
[1755912782522,10.89929665,197.6,197.56,2.85]
[1755912782716,2.49,197.59,197.49,0.95645231]
[1755912783025,2.49,197.59,197.53,2.85]
[1755912783319,2.49,197.58,197.5,2.77]
[1755912783524,2.49,197.58,197.49,0.95645231]
[1755912783525,2.49,197.58,197.52,2.77]
[1755912783724,2.49,197.58,197.54,2.77]
[1755912784628,2.49,197.58,197.49,3.72645231]
[1755912784927,2.24310239,197.68,197.5,4.82992568]
[1755912784928,2.49,197.56,197.5,4.82992568]
[1755912785127,4.73310239,197.57,197.49,3.72645231]
[1755912785321,4.73310239,197.57,197.5,4.82925119]
[1755912785521,4.73310239,197.57,197.49,3.72645231]
[1755912785716,4.73310239,197.57,197.5,4.82914124]
[1755912786015,4.73310239,197.57,197.49,3.72645231]
[1755912786225,2.49,197.54,197.49,0.95645231]
[1755912786427,10.89929665,197.55,197.49,0.95645231]
[1755912787225,2.49,197.53,197.49,0.95645231]
[1755912787424,5.058,197.6,197.49,0.95645231]
[1755912787425,2.49,197.52,197.49,0.95645231]
[1755912787824,2.49,197.5,197.49,0.95645231]
[1755912788028,2.49,197.5,197.41,2.77]
[1755912788221,2.49,197.5,197.42,4.82431961]
[1755912788426,2.49,197.5,197.41,2.77]
[1755912788622,2.49,197.5,197.42,4.82414007]
[1755912788829,2.49,197.5,197.41,2.77]
[1755912789130,10.65239904,197.53,197.43,2.77]
[1755912789426,9.94929665,197.52,197.43,2.77]
[1755912789928,1.54,197.52,197.43,2.77]
[1755912793632,1.54,197.52,197.45,5.0659]
[1755912794135,3.78310239,197.52,197.46,5.0658]
[1755912795438,3.78310239,197.52,197.45,2.77]
[1755912795938,3.78310239,197.52,197.46,5.0658]
[1755912796339,3.78310239,197.52,197.47,5.0656]
[1755912796539,3.78310239,197.52,197.48,2.77]
[1755912797642,1.54,197.51,197.47,5.0656]
[1755912797937,1.54,197.51,197.45,5.0662]
[1755912799234,1.54,197.51,197.39,23.76110808]
[1755912799441,2.24310239,197.45,197.4,4.8046507]
[1755912799644,2.84,197.48,197.33,25.347]
[1755912799938,2.24310239,197.45,197.34,4.80581957]
[1755912800134,2.24310239,197.45,197.37,5.0682]
[1755912800342,5.08310239,197.48,197.35,25.3445]
[1755912800635,2.84,197.48,197.41,5.0673]
[1755912800835,175.75445161,197.56,197.4,25.338]
[1755912801038,2.24310239,197.55,197.41,9.39446346]
[1755912801336,5.08310239,197.52,197.43,2.77]
[1755912802434,5.08310239,197.52,197.43,7.8368]
[1755912802731,5.08310239,197.52,197.43,2.77]
[1755912802732,2.84,197.52,197.43,2.77]
[1755912803334,2.84,197.52,197.45,5.0663]
[1755912803536,2.84,197.52,197.43,2.77]
[1755912804042,175.75445161,197.56,197.49,2.77]
[1755912805635,2.24310239,197.55,197.44,5.0665]
[1755912805840,2.84,197.49,197.38,25.3406]
[1755912806045,2.24310239,197.52,197.42,2.77]
[1755912806345,5.08310239,197.52,197.42,2.77]
[1755912806839,2.84,197.52,197.43,5.0667]
[1755912807843,2.84,197.52,197.42,2.77]
[1755912808641,2.84,197.55,197.43,2.77]
[1755912808841,2.84,197.55,197.44,4.7726566]
[1755912809040,2.84,197.55,197.46,2.77]
[1755912809644,175.75445161,197.56,197.48,7.8355]
[1755912813954,175.75445161,197.56,197.5,5.065]
[1755912815550,2.76,197.61,197.51,7.67817248]
[1755912815747,2.76,197.6,197.47,25.3288]
[1755912815953,2.76,197.59,197.48,4.77829036]
[1755912816149,2.76,197.59,197.49,4.77829036]
[1755912816344,2.76,197.59,197.5,5.0648]
[1755912818157,11.16929665,197.57,197.46,5.0658]
[1755912819157,8.40929665,197.56,197.46,5.0658]
[1755912820052,8.40929665,197.56,197.47,5.0655]
[1755912820252,16.23249665,197.57,197.47,5.0655]
[1755912820453,8.40929665,197.56,197.47,5.0655]
[1755912823053,8.40929665,197.56,197.48,5.0652]
[1755912823553,8.40929665,197.55,197.48,5.0652]
[1755912823756,2.76,197.54,197.39,2.24310239]
[1755912824059,8.40929665,197.51,197.41,2.9]
[1755912824259,2.76,197.5,197.42,4.79511284]
[1755912824457,2.76,197.5,197.41,2.9]
[1755912824656,2.76,197.5,197.42,4.79619248]
[1755912824858,2.76,197.5,197.41,2.9]
[1755912825057,2.76,197.5,197.42,9.86301201]
[1755912825261,11.16929665,197.5,197.42,5.0668]
[1755912825464,11.16929665,197.5,197.43,5.0666]
[1755912826065,11.16929665,197.5,197.43,2.9]
[1755912826269,2.76,197.5,197.43,2.9]
[1755912826565,11.16929665,197.5,197.43,2.9]
[1755912826967,2.76,197.5,197.44,5.0664]
[1755912827366,11.16929665,197.5,197.44,5.0664]
[1755912827667,2.76,197.5,197.44,5.0664]
[1755912828367,11.16929665,197.5,197.44,5.0664]
[1755912829266,11.16929665,197.5,197.43,2.9]
[1755912829462,8.40929665,197.49,197.43,2.9]
[1755912829858,8.40929665,197.49,197.43,7.9666]
[1755912830059,8.40929665,197.51,197.44,4.79988565]
[1755912830268,8.40929665,197.51,197.43,2.9]
[1755912830469,8.40929665,197.51,197.44,4.80009078]
[1755912830670,8.40929665,197.51,197.43,2.9]
[1755912830861,8.40929665,197.51,197.44,4.80009078]
[1755912831066,8.40929665,197.51,197.45,4.80009078]
[1755912831268,8.40929665,197.5,197.44,5.0663]
[1755912832770,8.40929665,197.5,197.43,2.9]
[1755912833073,8.40929665,197.5,197.44,4.81575958]
[1755912833268,8.40929665,197.5,197.43,2.9]
[1755912833567,11.16929665,197.48,197.4,5.0675]
[1755912833770,2.76,197.47,197.41,4.8164834]
[1755912833962,11.16929665,197.46,197.35,341.38109073]
[1755912834165,11.16929665,197.46,197.36,4.81709153]
[1755912834362,8.40929665,197.45,197.37,4.81709153]
[1755912834569,8.40929665,197.45,197.38,4.81709153]
[1755912834776,11.16929665,197.45,197.39,4.81709153]
[1755912834965,16.23569665,197.45,197.37,5.0681]
[1755912835170,11.16929665,197.45,197.38,4.8159441]
[1755912835368,11.16929665,197.45,197.39,4.8159441]
[1755912835572,8.40929665,197.45,197.38,5.0679]
[1755912835772,8.40929665,197.45,197.39,4.8159441]
[1755912836076,8.40929665,197.45,197.4,5.0673]
[1755912836372,2.76,197.48,197.43,2.9]
[1755912836373,8.40929665,197.48,197.43,2.9]
[1755912836569,8.40929665,197.48,197.44,2.9]
[1755912836769,8.40929665,197.48,197.43,5.0666]
[1755912836969,8.40929665,197.5,197.45,2.9]
[1755912837169,11.16929665,197.5,197.45,2.9]
[1755912839077,8.40929665,197.5,197.45,2.9]
[1755912839280,11.16929665,197.5,197.45,2.9]
[1755912839779,8.40929665,197.5,197.47,5.0656]
[1755912839977,8.40929665,197.5,197.4,28.2375]
[1755912839978,8.40929665,197.52,197.48,2.9]
[1755912840483,8.40929665,197.52,197.49,5.0651]
[1755912840673,16.21730941,197.58,197.49,5.0651]
[1755912840674,8.40929665,197.54,197.49,5.0651]
[1755912840978,8.40929665,197.51,197.44,5.0663]
[1755912841175,2.76,197.52,197.41,2.9]
[1755912841176,8.40929665,197.5,197.41,2.9]
[1755912841378,8.40929665,197.51,197.43,2.9]
[1755912841683,8.40929665,197.51,197.47,7.9655]
[1755912841883,8.40929665,197.52,197.48,2.9]
[1755912842181,8.40929665,197.52,197.43,25.3339]
[1755912842182,8.40929665,197.54,197.5,7.9648]
[1755912842585,8.40929665,197.57,197.54,2.9]
[1755912842793,8.40929665,197.62,197.54,2.24310239]
[1755912842985,8.40929665,197.63,197.56,2.9]
[1755912843184,8.40929665,197.64,197.57,4.90366725]
[1755912843382,8.40929665,197.63,197.56,2.9]
[1755912844681,8.0114,197.64,197.53,5.0641]
[1755912844682,8.40929665,197.62,197.53,5.0641]
[1755912844878,8.40929665,197.62,197.52,5.10310239]
[1755912845089,8.40929665,197.61,197.52,5.10310239]
[1755912845289,11.35929665,197.6,197.52,2.86]
[1755912845487,8.40929665,197.59,197.52,2.86]
[1755912845682,8.40929665,197.57,197.5,5.0647]
[1755912845886,8.40929665,197.58,197.5,7.9247]
[1755912846584,8.40929665,197.57,197.5,2.86]
[1755912846986,2.95,197.56,197.5,2.86]
[1755912847181,2.95,197.56,197.46,343.38]
[1755912847385,11.35929665,197.56,197.47,4.900882]
[1755912847586,11.35929665,197.56,197.48,4.900882]
[1755912847887,11.35929665,197.56,197.46,343.38]
[1755912847888,8.40929665,197.55,197.46,343.38]
[1755912848092,8.40929665,197.55,197.47,4.90125671]
[1755912848292,11.35929665,197.56,197.48,4.90125671]
[1755912848488,8.40929665,197.55,197.46,348.4458]
[1755912848692,8.40929665,197.55,197.47,4.90115203]
[1755912848897,11.35929665,197.56,197.48,4.90115203]
[1755912849090,2.95,197.56,197.49,4.90115203]
[1755912849296,8.40929665,197.54,197.46,343.38]
[1755912849491,8.40929665,197.54,197.47,4.90157954]
[1755912849689,8.40929665,197.54,197.46,2.86]
[1755912850891,2.95,197.52,197.42,7.927]
[1755912851095,8.40929665,197.51,197.43,4.90245132]
[1755912851291,8.40929665,197.51,197.44,4.90245132]
[1755912851492,8.40929665,197.51,197.42,2.86]
[1755912851493,8.015,197.5,197.42,2.86]
[1755912851689,8.015,197.5,197.43,4.90264676]
[1755912851890,2.95,197.5,197.42,2.86]
[1755912852093,13.60239904,197.5,197.42,2.86]
[1755912852301,2.95,197.49,197.38,131.72]
[1755912852492,2.95,197.49,197.39,9.90202338]
[1755912852799,2.95,197.49,197.4,9.90202338]
[1755912852993,2.95,197.49,197.41,4.90256621]
[1755912853195,5.0657,197.48,197.42,4.90256621]
[1755912853495,5.0657,197.48,197.38,131.72]
[1755912853691,5.0657,197.48,197.39,9.90210061]
[1755912853890,2.95,197.49,197.4,14.96960061]
[1755912854195,2.95,197.49,197.41,7.76229218]
[1755912854493,2.95,197.49,197.42,4.90229218]
[1755912854694,2.95,197.49,197.41,2.86]
[1755912854896,11.35929665,197.49,197.41,2.86]
[1755912855093,8.40929665,197.53,197.41,5.10310239]
[1755912855294,2.95,197.54,197.42,12.76097853]
[1755912855494,2.95,197.54,197.43,9.90097853]
[1755912855689,2.95,197.54,197.42,2.86]
[1755912855690,2.95,197.54,197.45,7.926]
[1755912855896,2.95,197.54,197.46,4.90142156]
[1755912856095,2.95,197.54,197.45,7.926]
[1755912856297,2.95,197.54,197.46,4.90116025]
[1755912856601,2.95,197.54,197.45,7.926]
[1755912857204,2.95,197.54,197.46,4.90130852]
[1755912857390,2.95,197.54,197.45,7.926]
[1755912857594,2.95,197.54,197.46,9.90021394]
[1755912857796,2.95,197.54,197.47,4.90164109]
[1755912858104,2.95,197.54,197.48,4.90164109]
[1755912858296,2.95,197.54,197.45,7.926]
[1755912858496,2.95,197.54,197.46,14.96617503]
[1755912858698,8.0142,197.54,197.47,4.90172084]
[1755912858894,8.0142,197.54,197.48,4.90172084]
[1755912859096,8.0142,197.54,197.46,5.0658]
[1755912859296,8.0142,197.54,197.47,4.90165393]
[1755912859499,8.0142,197.54,197.46,5.0658]
[1755912859797,8.0142,197.54,197.47,4.90198206]
[1755912859995,8.0142,197.54,197.46,5.0658]
[1755912860196,8.0142,197.54,197.47,4.90181963]
[1755912860402,8.0142,197.54,197.46,5.0658]
[1755912860597,8.0142,197.54,197.47,4.90214673]
[1755912860797,8.0142,197.54,197.46,5.0658]
[1755912861002,8.0142,197.54,197.47,4.90214673]
[1755912861200,8.0142,197.54,197.46,5.0658]
[1755912861400,8.0142,197.54,197.47,4.91369548]
[1755912861594,8.0142,197.54,197.48,4.91387702]
[1755912861793,8.0142,197.54,197.46,5.0658]
[1755912862000,8.0142,197.54,197.47,4.91394775]
[1755912862298,8.0142,197.54,197.48,4.91394775]
[1755912862499,8.0142,197.54,197.46,5.0658]
[1755912862804,8.0142,197.54,197.47,4.91458004]
[1755912863099,8.0142,197.54,197.46,5.0658]
[1755912863405,8.0142,197.54,197.47,4.91463059]
[1755912863604,8.0142,197.54,197.46,5.0658]
[1755912863804,8.0142,197.54,197.47,4.91494232]
[1755912864002,8.0142,197.54,197.46,5.0658]
[1755912864204,8.0142,197.54,197.47,4.91474178]
[1755912864398,8.0142,197.54,197.46,5.0658]
[1755912864600,8.40929665,197.52,197.41,2.86]
[1755912864799,2.95,197.5,197.42,9.94719636]
[1755912865008,2.95,197.5,197.43,4.91614275]
[1755912865306,2.95,197.5,197.44,4.91614275]
[1755912865501,2.95,197.5,197.41,2.86]
[1755912865502,5.0656,197.48,197.41,2.86]
[1755912865703,5.0656,197.48,197.42,9.94636944]
[1755912865905,5.0656,197.48,197.43,7.77572507]
[1755912866097,5.0656,197.48,197.44,4.91572507]
[1755912866403,8.0156,197.48,197.43,2.86]
[1755912866605,8.0156,197.48,197.44,4.91552588]
[1755912866799,8.0156,197.48,197.43,2.86]
[1755912866999,8.0156,197.48,197.44,4.91568968]
[1755912867304,8.0156,197.48,197.43,2.86]
[1755912867503,8.0156,197.48,197.44,4.91557607]
[1755912867700,8.0156,197.48,197.43,2.86]
[1755912867905,8.0156,197.48,197.44,4.91557607]
[1755912868106,8.0156,197.48,197.43,2.86]
[1755912868305,8.0159,197.47,197.44,4.91562415]
[1755912868501,8.0159,197.47,197.43,2.86]
[1755912868701,8.0159,197.47,197.44,4.91579803]
[1755912868909,8.0159,197.47,197.43,2.86]
[1755912869099,8.0159,197.47,197.44,4.91579803]
[1755912869304,8.0159,197.47,197.41,2.86]
[1755912869505,8.0159,197.47,197.42,12.80598174]
[1755912869705,5.0659,197.47,197.39,5.0676]
[1755912869907,2.95,197.48,197.4,9.94643798]
[1755912870107,2.95,197.48,197.41,12.80643798]
[1755912870412,2.95,197.48,197.42,9.94597204]
[1755912870611,2.95,197.48,197.43,4.91577326]
[1755912870911,2.95,197.48,197.41,5.067]
[1755912870912,2.95,197.48,197.44,7.77577326]
[1755912871213,2.95,197.48,197.44,2.86]
[1755912871809,5.0651,197.5,197.42,5.0668]
[1755912872011,5.0651,197.5,197.44,2.86]
[1755912872910,8.40929665,197.51,197.4,5.0674]
[1755912873115,2.95,197.5,197.41,9.9447746]
[1755912873309,2.95,197.5,197.42,9.9447746]
[1755912873518,2.95,197.5,197.43,4.91486498]
[1755912873706,2.95,197.5,197.44,4.91486498]
[1755912873911,13.34239904,197.49,197.4,2.86]
[1755912874111,13.34239904,197.49,197.41,4.91538703]
[1755912874307,4.93310239,197.49,197.42,4.91538703]
[1755912874516,4.93310239,197.49,197.38,5.068]
[1755912874517,2.69,197.44,197.38,5.068]
[1755912874808,2.69,197.44,197.39,9.94480362]
[1755912875008,4.93310239,197.48,197.41,2.69]
[1755912875506,5.0658,197.47,197.42,4.91451535]
[1755912875711,33.73329665,197.51,197.4,2.69]
[1755912875712,2.69,197.5,197.4,2.69]
[1755912875904,2.69,197.5,197.42,2.69]
[1755912876110,2.69,197.5,197.43,4.91423802]
[1755912876306,7.7551,197.5,197.44,4.91423802]
[1755912876509,7.7551,197.5,197.42,2.69]
[1755912876717,7.7551,197.5,197.43,4.91361068]
[1755912876913,7.7551,197.5,197.44,4.91361068]
[1755912877217,7.7551,197.5,197.42,2.69]
[1755912877515,7.7551,197.5,197.43,9.97989084]
[1755912877707,5.0653,197.49,197.44,4.91329084]
[1755912877912,2.69,197.48,197.42,2.69]
[1755912878119,2.69,197.52,197.43,4.91351273]
[1755912878315,2.69,197.52,197.42,7.7569]
[1755912878316,2.69,197.52,197.44,4.91351273]
[1755912878513,2.69,197.52,197.42,7.7569]
[1755912878715,2.69,197.52,197.43,4.91337731]
[1755912878915,2.69,197.52,197.44,4.91337731]
[1755912879217,2.69,197.52,197.42,7.7569]
[1755912879415,2.69,197.52,197.43,4.91358789]
[1755912879712,5.0648,197.51,197.44,4.91358789]
[1755912879905,5.0648,197.51,197.45,4.9131972]
[1755912880112,5.0648,197.51,197.43,5.0665]